fUSD/lending_fUSD_20250115
["ID","MTS","AMOUNT","RATE_DAILY","PERIOD"]
[349054492,1736955037680,-1455.02199178,0.0001,2]
[349054493,1736955037692,-3750.1811602,0.0001,2]
[349054494,1736955037713,-5772.89133995,0.0001,2]
[349054495,1736955037726,-10513.85051939,0.0001,2]
[349054496,1736955037738,-1186.38965857,0.0001,2]
[349054497,1736955037758,-2528.4147814,0.0001,2]
[349054498,1736955037770,-586126.31102938,0.0001,2]
[349054499,1736955037780,-1800.0,0.0001,3]
[349054500,1736955037790,-1268.27105523,0.0001,2]
[349054501,1736955037800,-385.55130525,0.0001,2]
[349054503,1736955037809,-1979.58388964,0.0001,2]
[349054505,1736955037818,-155.17,0.00010137,2]
[349054507,1736955037828,-164.7,0.00010137,2]
[349054509,1736955037839,-500.0,0.00010521,2]
[349054511,1736955037849,-503.80058172,0.00010521,2]
[349054513,1736955037858,-2500.0,0.000109,3]
[349054515,1736955037868,-255.0,0.00010999,2]
[349054517,1736955037878,-277965.3083798,0.00011,2]
[349054519,1736955037888,-550.0,0.00011,2]
[349054521,1736955037897,-185325.8968884,0.00011,2]
[349054523,1736955037913,-320.94793574,0.00011099,2]
[349054525,1736955037923,-320.94793567,0.00011099,2]
[349054527,1736955037932,-320.94793567,0.00011099,2]
[349054529,1736955037942,-320.94793567,0.00011099,2]
[349054531,1736955037951,-320.94793567,0.00011144,2]
[349054533,1736955037960,-320.94793567,0.00011456,2]
[349054535,1736955037970,-500.0,0.00011742,2]
[349054536,1736955037980,-3100.0,0.000118,4]
[349054538,1736955037990,-600.0,0.000119,4]
[349054540,1736955038000,-2640.98,0.00012,2]
[349054543,1736955038011,-433.0,0.00012099,2]
[349054544,1736955038021,-1979.58388964,0.0001229,2]
[349054546,1736955038030,-1979.58388964,0.0001229,2]
[349054548,1736955038040,-300.0,0.00012299,2]
[349054550,1736955038049,-301.63219179,0.00012299,2]
[349054552,1736955038059,-3889371.4055673,0.000123,2]
[349054554,1736955038069,-5494.40626614,0.00012451,2]
[349054556,1736955038079,-500.0,0.00012551,2]
[349054558,1736955038088,-1423.97429203,0.000128,2]
[349054560,1736955038099,-37014.61451428,0.000129,7]
[349054562,1736955038108,-29999.99,0.00012911,2]
[349054564,1736955038117,-2761.09,0.00012911,2]
[349054566,1736955038127,-600.0,0.00013,2]
[349054568,1736955038136,-250.0,0.00013284,2]
[349054570,1736955038145,-650.0,0.00015,2]
[349054572,1736955038162,-200.0,0.0001521,2]
[349054574,1736955038171,-1224.65860907,0.00015235,2]
[349054576,1736955038180,-1517.64,0.000153,2]
[349054578,1736955038190,-7346.33963514,0.000154,2]
[349054580,1736955038199,-150.66,0.000158,2]
[349054582,1736955038209,-150.66,0.000158,2]
[349054584,1736955038219,-150.66,0.000158,2]
[349054587,1736955038228,-150.66,0.000158,2]
[349054589,1736955038237,-150.66,0.000158,2]
[349054591,1736955038246,-150.66,0.000158,2]
[349054594,1736955038255,-150.66,0.000158,2]
[349054597,1736955038265,-150.66,0.000158,2]
[349054613,1736955038411,-150.66,0.000158,2]
[349054615,1736955038424,-8421.26770977,0.00016,2]
[349054618,1736955038435,-1539.932,0.0001667,2]
[349054620,1736955038444,-177.718,0.0001667,2]
[349054622,1736955038454,-331.72,0.000167,2]
[349054624,1736955038463,-200.0,0.00016916,2]
[349054625,1736955038473,-153.42657498,0.000179,2]
[349054628,1736955038483,-153.42657498,0.000179,2]
[349054629,1736955038492,-153.42657498,0.000179,2]
[349054631,1736955038502,-153.42657498,0.000179,2]
[349054634,1736955038511,-153.42657498,0.000179,2]
[349054635,1736955038521,-153.42657498,0.000179,2]
[349054638,1736955038531,-153.42657498,0.000179,2]
[349054640,1736955038541,-153.42657498,0.000179,2]
[349054641,1736955038550,-153.42657498,0.000179,2]
[349054643,1736955038560,-153.42657498,0.000179,2]
[349054645,1736955038569,-153.42657498,0.000179,2]
[349054647,1736955038578,-153.42657498,0.000179,2]
[349054649,1736955038588,-153.42657498,0.000179,2]
[349054651,1736955038598,-153.42657498,0.000179,2]
[349054653,1736955038607,-137893.75709172,0.00018,10]
[349054655,1736955038616,-29551.99247455,0.00018,3]
[349054657,1736955038626,-195997.63961663,0.000189,2]
[349054659,1736955038635,-179.133704,0.00018946,2]
[349054661,1736955038645,-23900.0,0.00019233,2]
[349054663,1736955038658,-3471.0,0.000193,2]
[349054665,1736955038667,-997.67869778,0.000195,2]
[349054667,1736955038677,-176.43,0.000196,2]
[349054669,1736955038687,-10666.90722941,0.0001975,3]
[349054671,1736955038697,-14738.01934411,0.0002,14]
[349054674,1736955038721,-8500.0,0.00020114,2]
[349054676,1736955038732,-607.0,0.00020658,30]
[349054679,1736955038743,-1000.0,0.00020658,30]
[349054681,1736955038753,-12823.92873484,0.00020658,2]
[349054683,1736955038763,-155.17,0.00020708,2]
[349054685,1736955038774,-859.76189286,0.000209,2]
[349054687,1736955038785,-461.97308785,0.00021278,14]
[349054689,1736955038795,-2672.38817966,0.00021278,14]
[349054691,1736955038805,-529.31,0.000222,7]
[349054693,1736955038815,-859.76189273,0.00022486,2]
[349054695,1736955038825,-200.0,0.00023,2]
[349054697,1736955038835,-2500.0,0.000234,2]
[349054699,1736955038846,-5000.0,0.000234,2]
[349054701,1736955038855,-859.76189273,0.00024072,2]
[349054703,1736955038864,-331.72,0.000241,7]
[349054705,1736955038874,-199.29273604,0.00025247,2]
[349054707,1736955038885,-859.76189273,0.00025659,2]
[349054709,1736955038895,-164.7,0.00025993,2]
[349054711,1736955038911,-1000.0,0.00026027,4]
[349054713,1736955038921,-1000.0,0.00026027,4]
[349054716,1736955038933,-1000.0,0.00026027,4]
[349054718,1736955038943,-1000.0,0.00026027,4]
[349054720,1736955038955,-859.76189273,0.00027245,2]
[349054722,1736955038965,-300.0,0.00027799,10]
[349054724,1736955038975,-745518.04064554,0.000278,30]
[349054726,1736955038989,-8013.03588428,0.000278,30]
[349054729,1736955039008,-385.36424049,0.000278,30]
[349054731,1736955039021,-865.69,0.000278,30]
[349054733,1736955039032,-392533.8340796,0.000278,30]
[349054736,1736955039044,-899.84041927,0.000278,30]
[349054738,1736955039057,-7343.282625,0.000278,30]
[349054740,1736955039068,-5216.32132093,0.000278,30]
[349054743,1736955039080,-480.00334765,0.000278,30]
[349054745,1736955039092,-1493.927595,0.000278,30]
[349054748,1736955039111,-10892.39908829,0.000278,30]
[349054750,1736955039122,-11948.77528,0.000278,30]
[349054754,1736955039145,-467.80424,0.000278,30]
[349054756,1736955039160,-760.07716815,0.000278,30]
[349054758,1736955039172,-965.47893929,0.000278,30]
[349054761,1736955039184,-1431.29033402,0.000278,30]
[349054763,1736955039197,-1001.53702812,0.000278,30]
[349054765,1736955039209,-2112.20686959,0.000278,30]
[349054768,1736955039228,-33749.62280082,0.000278,30]
[349054770,1736955039240,-2477.2161762,0.000278,30]
[349054773,1736955039252,-567.82012182,0.000278,30]
[349054775,1736955039264,-1463.24294412,0.000278,30]
[349054778,1736955039287,-28817.57440624,0.000278,30]
[349054781,1736955039299,-10811.00304557,0.000278,30]
[349054783,1736955039311,-12935.7717314,0.000278,30]
[349054785,1736955039322,-1432.91743824,0.000278,30]
[349054825,1736955039672,-386.0,0.000186,2]
[349054827,1736955039684,-561.72946,0.000278,30]
[349054830,1736955039697,-5984.4907456,0.000278,30]
[349054851,1736955039906,-141788.00377667,0.000278,30]
[349054854,1736955039957,-1730.84596,0.000278,30]
[349054855,1736955039969,-944.54437613,0.000278,30]
[349054856,1736955039985,-851.66209195,0.000278,30]
[349054857,1736955039998,-11819.39745183,0.000278,30]
[349054859,1736955040010,-487.8,0.000278,30]
[349054861,1736955040023,-331.07,0.000278,30]
[349054877,1736955040180,-1001828.89605333,0.000278,30]
[349054879,1736955040191,-441.09,0.000279,14]
[349054881,1736955040203,-600.0,0.000279,10]
[349054883,1736955040217,-362.35870999,0.00028,60]
[349054885,1736955040228,-859.76189273,0.00028831,2]
[349054887,1736955040238,-160.998,0.0002989,120]
[349054889,1736955040250,-151.0,0.0003,120]
[349054891,1736955040261,-859.76189273,0.00030417,2]
[349054893,1736955040272,-151.0,0.0003126,120]
[349054895,1736955040282,-155.17,0.00031279,2]
[349054897,1736955040293,-150.0,0.00031576,7]
[349054899,1736955040303,-859.76189273,0.00032003,2]
[349054901,1736955040313,-151.0,0.00032521,120]
[349054903,1736955040323,-212.567,0.00032756,2]
[349054905,1736955040336,-566.0,0.00032756,2]
[349054907,1736955040348,-635.0,0.00032756,2]
[349054909,1736955040358,-258.884,0.00032756,2]
[349054911,1736955040369,-1861.0,0.00032756,2]
[349054913,1736955040378,-2944.0,0.00032756,2]
[349054915,1736955040388,-832.0,0.00032756,2]
[349054917,1736955040397,-1259.0,0.00032756,2]
[349054919,1736955040411,-906.0,0.00032756,2]
[349054921,1736955040423,-553.705,0.00032756,2]
[349054923,1736955040433,-3979.0,0.00032756,2]
[349054925,1736955040442,-3898.0,0.00032756,2]
[349054927,1736955040452,-151.912,0.00032756,2]
[349054929,1736955040463,-1268.0,0.00032756,2]
[349054931,1736955040472,-2016.0,0.00032756,2]
[349054933,1736955040482,-151.293,0.00032756,2]
[349054935,1736955040491,-200.0,0.00032918,2]
[349054937,1736955040501,-725.46,0.00033008,120]
[349054939,1736955040511,-331.72,0.000331,14]
[349054941,1736955040525,-859.76189273,0.0003359,2]
[349054943,1736955040535,-5494.40626612,0.00033676,2]
[349054945,1736955040545,-151.0,0.00033781,120]
[349054947,1736955040555,-1423.97429202,0.0003385,2]
[349054949,1736955040565,-160.976,0.0003389,120]
[349054951,1736955040575,-184.63,0.00034738,2]
[349054970,1736955040743,-151.0,0.00035041,120]
[349054973,1736955040755,-859.76189273,0.00035176,2]
[349054976,1736955040764,-250.0,0.00035316,2]
[349054979,1736955040774,-157.952,0.00035756,2]
[349054981,1736955040784,-3896.0,0.00035756,2]
[349054983,1736955040794,-150.0,0.00035756,2]
[349054985,1736955040803,-1268.0,0.00035756,2]
[349054987,1736955040812,-2016.0,0.00035756,2]
[349054989,1736955040821,-151.0,0.00036301,120]
[349054991,1736955040831,-2751.0,0.00036319,120]
[349054993,1736955040840,-3168.48,0.00036656,2]
[349054995,1736955040850,-859.76189273,0.00036762,2]
[349054997,1736955040859,-184.63,0.00037002,2]
[349054999,1736955040869,-1000.0,0.00037101,2]
[349055001,1736955040879,-725.46,0.00037134,120]
[349055003,1736955040888,-151.0,0.00037562,120]
[349055005,1736955040897,-859.76189273,0.00038348,2]
[349055007,1736955040912,-176.63,0.00038411,2]
[349055009,1736955040921,-167.97,0.00038636,2]
[349055011,1736955040931,-151.0,0.00038822,120]
[349055013,1736955040940,-184.63,0.00039266,2]
[349055015,1736955040950,-331.72,0.000393,14]
[349055017,1736955040961,-11135.09415863,0.00039876,31]
[349055019,1736955040970,-859.76189273,0.00039934,2]
[349055021,1736955040980,-4700.1827019,0.00039998,120]
[349055023,1736955040990,-200.0,0.0004,2]
[349055025,1736955040999,-10044.16948421,0.0004,30]
[349055027,1736955041009,-30181.79856685,0.0004,30]
[349055029,1736955041018,-35087.5998313,0.0004,30]
[349055031,1736955041027,-151.0,0.00040082,120]
[349055033,1736955041037,-726.6100862,0.000405,8]
[349055035,1736955041046,-200.0,0.00040668,2]
[349055037,1736955041057,-300.0,0.00040779,10]
[349055039,1736955041066,-3095.64604532,0.0004078,2]
[349055041,1736955041076,-529779.23044862,0.0004078,2]
[349055043,1736955041085,-32153.26284987,0.00040789,2]
[349055045,1736955041095,-275.499999,0.000408,30]
[349055047,1736955041106,-1608.95841018,0.00041,120]
[349055049,1736955041115,-2000.0,0.00041096,13]
[349055051,1736955041124,-2000.0,0.00041096,13]
[349055053,1736955041133,-2000.0,0.00041096,13]
[349055055,1736955041143,-2000.0,0.00041096,13]
[349055057,1736955041152,-2000.0,0.00041096,13]
[349055059,1736955041166,-2000.0,0.00041096,13]
[349055061,1736955041176,-2000.0,0.00041096,13]
[349055063,1736955041186,-2000.0,0.00041096,13]
[349055065,1736955041195,-2000.0,0.00041096,13]
[349055067,1736955041205,-2000.0,0.00041096,13]
[349055069,1736955041214,-2000.0,0.00041096,13]
[349055071,1736955041223,-2000.0,0.00041096,13]
[349055073,1736955041233,-2000.0,0.00041096,13]
[349055075,1736955041242,-2000.0,0.00041096,13]
[349055077,1736955041252,-2000.0,0.00041096,13]
[349055079,1736955041262,-2000.0,0.00041096,13]
[349055081,1736955041272,-2000.0,0.00041096,13]
[349055083,1736955041280,-2000.0,0.00041096,13]
[349055084,1736955041290,-2000.0,0.00041096,13]
[349055086,1736955041299,-2000.0,0.00041096,13]
[349055089,1736955041309,-2000.0,0.00041096,13]
[349055090,1736955041318,-2000.0,0.00041096,13]
[349055093,1736955041329,-2000.0,0.00041096,13]
[349055095,1736955041339,-2000.0,0.00041096,13]
[349055096,1736955041351,-2000.0,0.00041096,13]
[349055099,1736955041361,-2000.0,0.00041096,13]
[349055100,1736955041370,-2000.0,0.00041096,13]
[349055102,1736955041380,-2000.0,0.00041096,13]
[349055104,1736955041391,-2000.0,0.00041096,13]
[349055107,1736955041400,-2000.0,0.00041096,13]
[349055109,1736955041413,-2000.0,0.00041096,13]
[349055110,1736955041423,-2000.0,0.00041096,13]
[349055112,1736955041433,-2000.0,0.00041096,13]
[349055115,1736955041443,-2000.0,0.00041096,13]
[349055117,1736955041453,-2000.0,0.00041096,13]
[349055118,1736955041463,-2000.0,0.00041096,13]
[349055121,1736955041473,-2000.0,0.00041096,13]
[349055122,1736955041482,-2000.0,0.00041096,13]
[349055125,1736955041492,-2000.0,0.00041096,13]
[349055127,1736955041501,-2000.0,0.00041096,13]
[349055129,1736955041511,-2000.0,0.00041096,13]
[349055130,1736955041520,-2000.0,0.00041096,13]
[349055133,1736955041530,-2000.0,0.00041096,13]
[349055134,1736955041539,-2000.0,0.00041096,13]
[349055136,1736955041549,-2000.0,0.00041096,13]
[349055138,1736955041558,-1661.0,0.00041096,13]
[349055140,1736955041568,-725.46,0.0004126,120]
[349055142,1736955041577,-151.0,0.00041342,120]
[349055145,1736955041587,-859.76189273,0.00041521,2]
[349055146,1736955041597,-184.63,0.0004153,2]
[349055149,1736955041607,-200.0,0.0004171,61]
[349055151,1736955041617,-1000.0,0.00041738,2]
[349055152,1736955041626,-155.17,0.00041849,2]
[349055154,1736955041635,-164.7,0.00041849,2]
[349055156,1736955041645,-352.87,0.000421,30]
[349055159,1736955041658,-151.0,0.00042603,120]
[349055161,1736955041668,-250.0,0.00043,2]
[349055162,1736955041677,-859.76189273,0.00043107,2]
[349055165,1736955041687,-175.28,0.00043656,2]
[349055167,1736955041696,-184.63,0.00043793,2]
[349055169,1736955041708,-300.0,0.00043799,30]
[349055171,1736955041718,-90605.37115034,0.000438,2]
[349055173,1736955041731,-3408.54404033,0.000438,2]
[349055175,1736955041743,-377.14619967,0.000438,2]
[349055178,1736955041755,-36965.78658592,0.000438,2]
[349055180,1736955041767,-3987.53790572,0.000438,2]
[349055181,1736955041778,-1173.57729851,0.000438,2]
[349055182,1736955041789,-5347.70342036,0.000438,2]
[349055183,1736955041801,-591.15449,0.000438,2]
[349055184,1736955041812,-1699.68651401,0.000438,2]
[349055283,1736955042836,-269.3915,0.00011767,2]
[349055288,1736955042912,-51.55643567,0.00011767,2]
[349055289,1736955042922,-7.26356432,0.00030971,30]
[349055343,1736955045778,-1201.99648526,0.00030971,30]
[349055345,1736955045789,-138.00351474,0.000438,2]
[349055348,1736955045805,-7347.86652267,0.000438,2]
[349055350,1736955045817,-26247.97750915,0.000438,2]
[349055353,1736955045836,-150.0,0.0004126,120]
[349055355,1736955045846,-1040.113358,0.000438,2]
[349055357,1736955045899,-176.86666667,0.0003,120]
[349055358,1736955045909,-680.33260302,0.000438,2]
[349055359,1736955046002,-397.22000004,0.000438,2]
[349055360,1736955046014,-26763.90813,0.000438,2]
[349055361,1736955046026,-9967.6,0.000438,2]
[349055362,1736955046038,-252.77790372,0.000438,2]
[349055363,1736955046059,-6017.49620762,0.000438,2]
[349055364,1736955046071,-906.254892,0.000438,2]
[349055391,1736955968351,4658.35414316,8.602e-05,2]
[349055392,1736955968374,314.77585684,8.602e-05,2]
[349055422,1736956232014,-1637.54460477,0.00012229,2]
[349055423,1736956232025,-219.59,0.00012329,2]
[349055424,1736956232035,-233.14,0.00015217,2]
[349055425,1736956232046,-1127.83,0.00015217,2]
[349055426,1736956232055,-6869.97628521,0.00015217,2]
[349055427,1736956232067,-7087.45371479,0.00015217,2]
[349055428,1736956232077,-500.0,0.00015981,2]
[349055429,1736956232087,-1616.929,0.00016734,2]
[349055430,1736956232097,-175.099,0.00016734,2]
[349055431,1736956232107,-1001.64802612,0.000169,2]
[349055432,1736956232117,-20337.08,0.000169,2]
[349055433,1736956232127,-516.72,0.000169,2]
[349055434,1736956232137,-12014.60076521,0.000169,2]
[349055435,1736956232150,-12556.52923479,0.000169,2]
[349055436,1736956232159,-151.13476227,0.000169,2]
[349055437,1736956232170,-3471.0,0.000179,2]
[349055438,1736956232183,-992.91,0.000179,2]
[349055439,1736956232193,-150.99,0.000179,2]
[349055440,1736956232203,-812.17,0.000179,2]
[349055441,1736956232213,-9999.99,0.000179,2]
[349055442,1736956232222,-264.33,0.000179,2]
[349055443,1736956232232,-9687.02,0.000179,2]
[349055444,1736956232242,-1001.64802598,0.00018624,2]
[349055445,1736956232251,-150.0,0.000198,2]
[349055446,1736956232260,-299.99,0.000198,7]
[349055447,1736956232269,-1001.64802598,0.00020348,2]
[349055448,1736956232396,-1001.64802598,0.00022072,2]
[349055449,1736956232413,-152.73,0.000223,7]
[349055450,1736956232425,-5212.5753,0.00023781,10]
[349055451,1736956232435,-1001.64802598,0.00023797,2]
[349055452,1736956232445,-1001.64802598,0.00025521,2]
[349055453,1736956232455,-700.0744,0.00025927,2]
[349055454,1736956232464,-1000.0,0.00026027,4]
[349055455,1736956232474,-1000.0,0.00026027,4]
[349055456,1736956232485,-1000.0,0.00026027,4]
[349055457,1736956232495,-1000.0,0.00026027,4]
[349055458,1736956232504,-830.90524137,0.00026027,4]
[349055460,1736956232514,-1001.64802598,0.00027245,2]
[349055462,1736956232523,-206.37,0.000281,14]
[349055463,1736956232532,-1001.64802598,0.00028969,2]
[349055466,1736956232542,-1209.0,0.00030499,2]
[349055467,1736956232552,-1001.64802598,0.00030693,2]
[349055470,1736956232562,-1209.0,0.00030814,2]
[349055472,1736956232572,-176.86666667,0.00030849,120]
[349055474,1736956232581,-1209.0,0.00031128,2]
[349055476,1736956232591,-1209.0,0.00031442,2]
[349055478,1736956232601,-276.48,0.0003156,2]
[349055480,1736956232610,-200.0,0.0003164,2]
[349055482,1736956232620,-160.9,0.0003166,2]
[349055484,1736956232629,-176.86666667,0.00031699,120]
[349055485,1736956232638,-1209.0,0.00031757,2]
[349055487,1736956232648,-1310.12,0.0003182,120]
[349055489,1736956232657,-475.28030677,0.00032071,2]
[349055492,1736956232670,-733.71969323,0.00032071,2]
[349055494,1736956232682,-160.0,0.00032164,2]
[349055496,1736956232692,-1209.0,0.00032386,2]
[349055498,1736956232702,-1001.64802598,0.00032417,2]
[349055500,1736956232711,-176.86666667,0.00032548,120]
[349055502,1736956232721,-1347.68,0.0003255,2]
[349055504,1736956232732,-839.81,0.00033289,2]
[349055506,1736956232742,-150.0,0.00033289,2]
[349055508,1736956232751,-500.0,0.00033297,2]
[349055510,1736956232760,-176.86666667,0.00033397,120]
[349055511,1736956232771,-1000.0,0.00033398,2]
[349055513,1736956232780,-165.28,0.00033416,2]
[349055515,1736956232790,-1000.0,0.00033466,2]
[349055517,1736956232799,-250.0,0.0003347,120]
[349055519,1736956232809,-280.8,0.00033643,2]
[349055521,1736956232819,-276.48,0.00033824,2]
[349055523,1736956232828,-1001.64802598,0.00034141,2]
[349055525,1736956232838,-176.86666667,0.00034247,120]
[349055527,1736956232847,-150.0,0.00034548,10]
[349055529,1736956232857,-168.15,0.00034817,2]
[349055531,1736956232866,-156.7735821,0.00034853,2]
[349055533,1736956232875,-150.0,0.00034936,2]
[349055535,1736956232885,-566.0,0.00034936,2]
[349055537,1736956232895,-635.0,0.00034936,2]
[349055539,1736956232905,-1104.0,0.00034936,2]
[349055541,1736956232916,-1861.0,0.00034936,2]
[349055543,1736956232928,-1259.0,0.00034936,2]
[349055545,1736956232938,-915.0,0.00034936,2]
[349055548,1736956232950,-2944.0,0.00034936,2]
[349055549,1736956232960,-820.0,0.00034936,2]
[349055552,1736956232969,-537.0,0.00034936,2]
[349055553,1736956232979,-3979.0,0.00034936,2]
[349055555,1736956232989,-150.448,0.00034936,2]
[349055557,1736956232998,-9632.0,0.00034936,2]
[349055559,1736956233008,-1174.0,0.00034936,2]
[349055561,1736956233017,-523.8911,0.00034953,2]
[349055563,1736956233027,-2316.75633329,0.00034996,2]
[349055565,1736956233038,-23900.0,0.00035053,2]
[349055567,1736956233048,-176.86666667,0.00035096,120]
[349055569,1736956233058,-200.0,0.00035309,2]
[349055571,1736956233068,-2751.0,0.00035309,120]
[349055573,1736956233078,-1569.87,0.0003536,2]
[349055575,1736956233088,-250.0,0.00035707,2]
[349055577,1736956233099,-312.94,0.00035719,120]
[349055579,1736956233109,-1310.12,0.00035797,120]
[349055581,1736956233119,-1001.64802598,0.00035866,2]
[349055583,1736956233129,-176.86666667,0.00035945,120]
[349055585,1736956233140,-276.48,0.00036088,2]
[349055586,1736956233151,-250.0,0.00036214,2]
[349055587,1736956233162,-2316.75633329,0.00036652,2]
[349055588,1736956233175,-176.86666667,0.00036795,120]
[349055589,1736956233185,-2786.4478,0.000369,2]
[349055590,1736956233196,-1755.0573,0.000369,2]
[349055591,1736956233207,-7758.0,0.00037,117]
[349055592,1736956233218,-1000.0,0.00037573,2]
[349055593,1736956233229,-1001.64802598,0.0003759,2]
[349055595,1736956233239,-176.86666667,0.00037644,120]
[349055597,1736956233249,-1104.0,0.00037936,2]
[349055599,1736956233258,-9626.0,0.00037936,2]
[349055601,1736956233268,-1174.0,0.00037936,2]
[349055603,1736956233278,-2316.75633329,0.00038308,2]
[349055605,1736956233288,-276.48,0.00038352,2]
[349055606,1736956233298,-176.86666667,0.00038493,120]
[349055608,1736956233309,-8533.8,0.00038909,117]
[349055610,1736956233319,-1001.64802598,0.00039314,2]
[349055612,1736956233330,-176.86666667,0.00039342,120]
[349055615,1736956233340,-1000.0,0.000397,2]
[349055616,1736956233350,-1310.12,0.00039775,120]
[349055619,1736956233360,-2667.34378641,0.000398,120]
[349055621,1736956233372,-3246.639866,0.000398,120]
[349055623,1736956233383,-200.0,0.00039835,2]
[349055625,1736956233392,-2316.75633329,0.00039964,15]
[349055627,1736956233402,-3289.0,0.0004,120]
[349055629,1736956233412,-2000.0,0.0004,120]
[349055631,1736956233422,-1616.93,0.0004005,56]
[349055633,1736956233434,-176.86666667,0.00040192,120]
[349055635,1736956233444,-276.48,0.00040616,2]
[349055637,1736956233453,-5000.0,0.00040618,2]
[349055639,1736956233463,-18620.39,0.00040818,117]
[349055641,1736956233474,-2000.0,0.00041,120]
[349055643,1736956233484,-1001.64802598,0.00041038,2]
[349055645,1736956233493,-176.86666667,0.00041041,120]
[349055647,1736956233503,-447.0651,0.00041543,2]
[349055649,1736956233514,-2316.75633329,0.0004162,15]
[349055651,1736956233525,-1000.0,0.00041748,2]
[349055653,1736956233534,-176.86666667,0.0004189,120]
[349055655,1736956233544,-1478.9,0.00042,120]
[349055657,1736956233554,-2903.56,0.00042,30]
[349055659,1736956233564,-1223.0,0.00042108,30]
[349055661,1736956233573,-2000.0,0.000425,30]
[349055663,1736956233583,-20170.8,0.00042727,117]
[349055665,1736956233593,-176.86666667,0.0004274,120]
[349055667,1736956233603,-1001.64802598,0.00042762,2]
[349055669,1736956233614,-276.48,0.0004288,2]
[349055671,1736956233624,-3000.0,0.00043,120]
[349055673,1736956233633,-2000.0,0.00043,120]
[349055675,1736956233643,-6218.47098008,0.00043,120]
[349055677,1736956233653,-2000.0,0.00043,30]
[349055679,1736956233662,-2316.75633329,0.00043276,15]
[349055681,1736956233675,-2000.0,0.000435,30]
[349055683,1736956233686,-176.86666667,0.00043589,120]
[349055685,1736956233696,-160.47396786,0.00043625,15]
[349055687,1736956233706,-4602.77383426,0.00043673,2]
[349055690,1736956233736,-14221.5236,0.00043673,2]
[349055694,1736956233761,-2271.0396,0.00043673,2]
[349055697,1736956233783,-7216.92806574,0.00043673,2]
[349055698,1736956233794,-1633.83620804,0.00043673,2]
[349055701,1736956233805,-7242.6276,0.000437,2]
[349055703,1736956233815,-1658.293,0.000437,2]
[349055705,1736956233826,-160.13,0.000437,2]
[349055707,1736956233837,-33714.3367932,0.000437,2]
[349055709,1736956233846,-1179.75651123,0.00043725,15]
[349055711,1736956233856,-1310.12,0.00043752,120]
[349055713,1736956233867,-1000.0,0.00043773,2]
[349055715,1736956233877,-1000.0,0.00043773,2]
[349055716,1736956233887,-1000.0,0.00043773,2]
[349055718,1736956233899,-1000.0,0.00043773,2]
[349055731,1736956234031,-1000.0,0.00043773,2]
[349055734,1736956234042,-1000.0,0.00043773,2]
[349055735,1736956234052,-1000.0,0.00043773,2]
[349055737,1736956234062,-1000.0,0.00043773,2]
[349055739,1736956234071,-1000.0,0.00043773,2]
[349055741,1736956234082,-1000.0,0.00043773,2]
[349055744,1736956234091,-1000.0,0.00043773,2]
[349055746,1736956234102,-1000.0,0.00043773,2]
[349055747,1736956234112,-1000.0,0.00043773,2]
[349055750,1736956234123,-1000.0,0.00043773,2]
[349055752,1736956234133,-1000.0,0.00043773,2]
[349055753,1736956234143,-1000.0,0.00043773,2]
[349055756,1736956234153,-1000.0,0.00043773,2]
[349055758,1736956234163,-1000.0,0.00043773,2]
[349055760,1736956234173,-1000.0,0.00043773,2]
[349055762,1736956234185,-1000.0,0.00043773,2]
[349055764,1736956234195,-1000.0,0.00043773,2]
[349055766,1736956234205,-1000.0,0.00043773,2]